Cogmind - Beta 12 @@@ ROGUE MODE // 2023.03.22 @ 00:27:22 Player: dhtilly Result: Destroyed by G-47 Trooper with Particle Gun Performance ------------- Evolutions (3) 1500 Regions Visited (6) 1200 Robots Destroyed (84) 420 Value Destroyed (2830) 2830 Prototype IDs (30) 600 Alien Tech Used (0) 0 Bonus (1407) 1407 TOTAL SCORE: 7957 Bonus ------- High Alert Combat Kills 761 Follower Combat Kills 472 Aligned with FarCom 300 Friendly Fire -126 Cogmind --------- Core Integrity 0/700 Matter 228/300 Energy 4/100 System Corruption 4% Temperature Cool (9) Movement Core (1400) Ox27 Location -7/Factory Parts ------- > --- POWER (1) -------- (None) > --- PROPULSION (4) --- Improved Flight Unit Improved Flight Unit Improved Flight Unit Improved Flight Unit > --- UTILITY (6) ------ Huge Storage Unit Improved Terrain Scan Processor Improved Targeting Computer Hacking Suite > --- WEAPON (2) ------- Ripper > --- INVENTORY (25) --- Cooling System Cooling System Improved Targeting Computer Improved Utility Shielding Hacking Suite Hacking Suite Hacking Suite Recalibrator Particle Gun Autogun Rocket Launcher Signal Generator Peak State ------------ > --- POWER ------------ Light Angular Momentum Engine > --- PROPULSION ------- Advanced Treads Armored Wheel Armored Huge Wheel > --- UTILITY ---------- Cooling System Huge Storage Unit Improved Signal Interpreter Improved Targeting Computer Improved Targeting Computer Energy Filter > --- WEAPON ----------- YOLO Cannon > --- INVENTORY -------- Light Nuclear Core Light Treads Improved Flight Unit Improved Flight Unit Improved Flight Unit Improved Flight Unit Cooling System Cooling System Improved Terrain Scan Processor Improved Targeting Computer Improved Utility Shielding Hardened Heavy Armor Plating Hacking Suite Hacking Suite Hacking Suite Hacking Suite Recalibrator Particle Gun Autogun Advanced EMP Blaster Rocket Launcher Ripper Signal Generator [Rating: 59] Favorites ----------- Power Light Nuclear Core Engine Light Angular Momentum Engine Power Core Light Nuclear Core Propulsion Wheel Treads Light Treads Leg Aluminum Leg Wheel Wheel Flight Unit Improved Flight Unit Utility Targeting Computer Device Cooling System Storage Large Storage Unit Processor Targeting Computer Protection Light Armor Plating Weapon Assault Rifle Energy Gun Particle Gun Energy Cannon Advanced Beam Cannon Ballistic Gun Assault Rifle Ballistic Cannon Assault Cannon Launcher Advanced EMP Blaster Slashing Weapon Ripper Build | -11 -10 -10 -10 -9 -8 -7 ------- Run | Jun Mat Min Exi Min Mat Fac Slots Evolved 6 | . . . . . 4 2 Power . | . . . . . . . Propulsion 2 | . . . . . 1 1 Utility 4 | . . . . . 3 1 Weapon . | . . . . . . . Parts Attached 100 | 6 10 3 1 3 60 17 Power 10 | 1 3 1 . . 4 1 Engine 6 | 1 2 . . . 3 . Core 4 | . 1 1 . . 1 1 Reactor . | . . . . . . . Propulsion 32 | 2 2 1 1 . 18 8 Treads 12 | . . . . . 9 3 Leg 2 | . . . . . 2 . Wheel 13 | 2 2 1 1 . 6 1 Hover . | . . . . . . . Flight 5 | . . . . . 1 4 Utility 25 | 1 3 . . . 17 4 Device 6 | . . . . . 5 1 Storage 5 | 1 2 . . . 2 . Processor 6 | . 1 . . . 4 1 Hackware 1 | . . . . . . 1 Protection 7 | . . . . . 6 1 Artifact . | . . . . . . . Weapon 33 | 2 2 1 . 3 21 4 Energy Gun 4 | . . . . . 4 . Energy Cannon 12 | . . . . . 11 1 Ballistic Gun 8 | 2 2 1 . 3 . . Ballistic Cannon 2 | . . . . . 2 . Launcher 4 | . . . . . 2 2 Special Weapon . | . . . . . . . Impact Weapon . | . . . . . . . Slashing Weapon 3 | . . . . . 2 1 Piercing Weapon . | . . . . . . . Special Melee Weapon . | . . . . . . . Unidentified Prototypes 5 | . . . . . 4 1 Corrupted Parts 1 | . . . . . . 1 System Corruption 3 | . . . . . . 3 Parts Lost 32 | . . 1 . . 15 16 Power 3 | . . . . . 1 2 Propulsion 11 | . . . . . 5 6 Utility 10 | . . . . . 5 5 Weapon 8 | . . 1 . . 4 3 Highest Loss Streak 16 | . . 1 . . 5 16 To Critical Strikes . | . . . . . . . Average Slot Usage (%) 92 | . 97 100 100 100 89 69 Engine 5 | . 6 . . . 7 4 Core 5 | . 7 14 14 14 1 . Treads 4 | . . . . . 7 8 Wheel 21 | . 27 28 28 28 16 10 Device 5 | . . . . . 9 7 Storage 11 | . 14 14 14 14 9 7 Processor 13 | . 12 14 14 14 13 17 Protection 3 | . . . . . 7 . Energy Cannon 6 | . . . . . 12 5 Ballistic Gun 12 | . 27 28 28 28 1 . Naked Turns . | . . . . . . . Heaviest Build 129 | 12 29 29 28 28 129 112 Greatest Support 42 | 26 26 26 26 20 40 42 Greatest Overweight (x) 33 | . 1 1 1 1 33 3 Average Overweight (x) 1 | . . 1 1 1 2 2 Largest Inventory Capacity 25 | 8 15 15 15 15 25 25 Average Capacity 18 | 7 10 15 15 15 21 25 Most Carried 25 | 4 11 15 15 15 25 25 Average Carried 16 | 2 8 13 14 14 20 23 Final Capacity 25 | 8 15 15 15 15 25 25 Final Carried 25 | 4 11 15 15 15 25 12 Class Distribution -------------------- 78% | Mutant 15% | Scavenger-Mutant 5% | Scavenger-Skirmisher Dominant Class ---------------- Mutant | -10/Materials Mutant | -10/Mines Mutant | -10/Exiles Mutant | -9/Mines Mutant | -8/Materials Mutant | -7/Factory Resources | -11 -10 -10 -10 -9 -8 -7 ----------- Run | Jun Mat Min Exi Min Mat Fac Matter Collected 2059 | 177 629 123 . 56 1003 71 Remotely . | . . . . . . . Salvage Created 3380 | . 579 105 . . 2492 204 Parts 168 | . 30 12 . . 118 8 Haulers Intercepted 7 | . 2 . . . 5 . Recyclers Shooed 3 | . . 1 . . 2 . Parts Field Recycled . | . . . . . . . Retrieved Matter . | . . . . . . . Parts Self-Destructed . | . . . . . . . Prevented . | . . . . . . . Kills | -11 -10 -10 -10 -9 -8 -7 ------- Run | Jun Mat Min Exi Min Mat Fac Combat Hostiles Destroyed 60 | . 11 5 . . 41 3 Melee 2 | . . . . . . 2 Guns 21 | . 11 5 . . 5 . Cannons 24 | . . . . . 23 1 AOE 11 | . . . . . 11 . Classes Destroyed 16 | . 2 3 . . 11 . Worker 4 | . . 1 . . 3 . Builder 2 | . . 1 . . 1 . Tunneler 1 | . . . . . 1 . Hauler 7 | . 2 . . . 5 . Recycler 2 | . . . . . 2 . Carrier 2 | . . . . . 2 . Mechanic 3 | . . . . . 3 . Operator 2 | . . . . . 2 . Watcher 1 | . . . . . 1 . Swarmer 8 | . . 5 . . 3 . Grunt 34 | . 11 . . . 23 . Brawler 1 | . . . . . 1 . Duelist 3 | . . . . . 3 . Sentry 11 | . . . . . 8 3 Specialist 2 | . . . . . 2 . Heavy 1 | . . . . . 1 . Thug 1 | . . . . . 1 . Best Kill Streak 9 | . 4 3 . . 9 2 Combat Bots Only 5 | . 4 3 . . 5 2 Max Kills in Single Turn 4 | . 1 1 . . 4 1 Gunslinging . | . . . . . . . Exploded 2 | . . . . . 2 . Melee 1 | . . . . . . 1 Uniques/NPCs Destroyed . | . . . . . . . Combat | -11 -10 -10 -10 -9 -8 -7 -------- Run | Jun Mat Min Exi Min Mat Fac Damage Taken 4623 | . 307 118 . 6 2772 1420 Core 817 | . 38 58 . . 364 357 Absorbed by Shields . | . . . . . . . Redirected to Shielding 25 | . . . . . 25 . Regen/Repaired (Parts) 97 | . 62 . . . 35 . Core Remaining (%) 64 | 100 . . . 61 33 . Volleys Fired 218 | . 41 20 . . 145 12 Largest 2 | . 2 2 . . 2 1 Hottest 143 | . 40 40 . . 143 100 Shots Fired 387 | . 82 40 . . 254 11 Gun 178 | . 82 40 . . 56 . Cannon 199 | . . . . . 192 7 Launcher 10 | . . . . . 6 4 Special . | . . . . . . . Kinetic 204 | . 82 40 . . 82 . Thermal 173 | . . . . . 166 7 Explosive 6 | . . . . . 6 . Electromagnetic 4 | . . . . . . 4 Robot Hit Streak 27 | . 19 23 . . 27 5 Robot Miss Streak 3 | . 2 2 . . 3 1 Penetration Max . | . . . . . . . Secondary Targets . | . . . . . . . Shots Hit Robots 277 | . 57 26 . . 178 16 Core Hits 131 | . 26 10 . . 87 8 Critical Kills 5 | . . . . . 5 . Critical Parts Destroyed . | . . . . . . . Critical Strikes 6 | . . . . . 5 1 Meltdown 3 | . . . . . 3 . Destroy 2 | . . . . . 2 . Sever 1 | . . . . . . 1 Melee Attacks 12 | . . . . . 3 9 Impact . | . . . . . . . Slashing 12 | . . . . . 3 9 Piercing . | . . . . . . . Sneak Attacks 1 | . . . . . 1 . Combat Hostiles . | . . . . . . . Follow-up Attacks . | . . . . . . . Damage Inflicted 7694 | . 712 309 . . 6081 592 Guns 1458 | . 712 309 . . 437 . Cannons 3976 | . . . . . 3821 155 Explosions 1910 | . . . . . 1741 169 Melee 339 | . . . . . 72 267 Ramming 11 | . . . . . 10 1 Kinetic 2013 | . 712 309 . . 992 . Thermal 4518 | . . . . . 4363 155 Explosive 644 | . . . . . 644 . Electromagnetic 169 | . . . . . . 169 Impact . | . . . . . . . Slashing 339 | . . . . . 72 267 Piercing . | . . . . . . . Highest Corruption 4 | . 1 1 1 1 3 4 Average Corruption 1 | . 1 1 1 1 2 3 Corruption Purged . | . . . . . . . Corruption Blocked . | . . . . . . . Effects 32 | . 2 4 5 1 19 1 Message Errors 4 | . . 2 1 . 1 . Matter Fused 9 | . . 1 2 . 6 . Heat Flow Errors 4 | . . . 2 . 2 . Energy Discharges 5 | . 1 . . . 4 . Parts Rejected 1 | . . . . . 1 . Data Loss (minor) 3 | . . . . . 2 1 Data Loss (major) 2 | . . 1 . . 1 . Alerts 3 | . 1 . . 1 1 . Weapon Failures 1 | . . . . . 1 . Overload Shots . | . . . . . . . Overflow Damage 245 | . . . . . 183 62 Projectiles 97 | . . . . . 97 . Explosions 148 | . . . . . 86 62 Melee . | . . . . . . . Knockbacks 12 | . . . . . 12 . Impact . | . . . . . . . Kinetic 9 | . . . . . 9 . Secondary 3 | . . . . . 3 . Self-Inflicted Damage 229 | . . . . . 70 159 Shots 6 | . . . . . 2 4 Rammed 3 | . . . . . 2 1 Targets Rammed 3 | . . . . . 2 1 Kicked . | . . . . . . . Crushed . | . . . . . . . Highest Temperature 711 | . 14 4 255 . 711 128 Average Temperature 89 | . 4 3 117 . 104 55 Received Heat Transfer 1716 | . 174 . . . 1017 525 Effects 11 | . . . 1 . 10 . Shutdowns 2 | . . . . . 2 . Energy Bleed 1 | . . . . . 1 . Interference 4 | . . . 1 . 3 . Matter Decay 3 | . . . . . 3 . Damage (minor) 1 | . . . . . 1 . Siege Activations . | . . . . . . . Robots Corrupted . | . . . . . . . Combat Hostiles . | . . . . . . . Parts Fried . | . . . . . . . Impact Corruptions . | . . . . . . . Robots Melted 4 | . . . . . 4 . Combat Hostiles 2 | . . . . . 2 . Parts Melted 16 | . . . . . 16 . Heat Transferred 6173 | . . . . . 5873 300 Parts Sabotaged . | . . . . . . . Parts Stolen . | . . . . . . . Parts Stripped . | . . . . . . . Power Chain Reactions 1 | . . . . . . 1 Missiles Intercepted . | . . . . . . . Alert | -11 -10 -10 -10 -9 -8 -7 ------- Run | Jun Mat Min Exi Min Mat Fac Peak Influence 1361 | . 292 263 . 103 1361 633 Initial 618 | . . 75 . . . 618 Average 439 | . 143 119 . 101 632 611 Maximum Alert Level 4 | . 1 1 . . 4 2 Low Security (%) 40 | 100 76 72 . 100 17 . Level 1 17 | . 23 27 . . 19 . Level 2 17 | . . . . . 19 100 Level 3 14 | . . . . . 25 . Level 4 9 | . . . . . 16 . Level 5 . | . . . . . . . High Security . | . . . . . . . Max Security . | . . . . . . . Sterilizations 1 | . . . . . 1 . Squads Dispatched 21 | . 4 1 . . 10 6 Investigation 6 | . 3 . . . 2 1 Extermination 1 | . . . . . . 1 Reinforcement 6 | . 1 . . . 4 1 Assault 4 | . . 1 . . 3 . Garrison 4 | . . . . . 1 3 Intercept . | . . . . . . . Searches Triggered . | . . . . . . . Construction Impeded 2 | . . . . . 1 1 Haulers Reinforced . | . . . . . . . Active Scanning Responses . | . . . . . . . Cargo Convoy Interrupts . | . . . . . . . Stealth | -11 -10 -10 -10 -9 -8 -7 --------- Run | Jun Mat Min Exi Min Mat Fac Distress Signals 5 | . 1 . . . 4 . Communications Jammed . | . . . . . . . Distress Signals . | . . . . . . . Times Spotted 103 | . 17 8 . 3 67 8 Peak Tracking Total 6 | . 4 3 . 3 5 6 Tactical Retreats 4 | . . . . . 4 . Traps | -11 -10 -10 -10 -9 -8 -7 ------- Run | Jun Mat Min Exi Min Mat Fac Traps Triggered 7 | . 4 . . . 3 . Indirectly . | . . . . . . . Trap Hack Attempts . | . . . . . . . Triggered . | . . . . . . . Disarmed . | . . . . . . . Reprogrammed 2 | . 2 . . . . . Reused . | . . . . . . . Traps Extracted . | . . . . . . . Installed 3 | . . . . 3 . . Triggered . | . . . . . . . Most Traps Carried 1 | . . . . 1 . . Machines | -11 -10 -10 -10 -9 -8 -7 ---------- Run | Jun Mat Min Exi Min Mat Fac Machines Disabled 9 | . . . . . 8 1 Max in Single Turn 1 | . . . . . 1 1 Garrison Access 1 | . . . . . 1 . Machines Repaired . | . . . . . . . Machines Sabotaged . | . . . . . . . Overloaded Fab Kills . | . . . . . . . Hacking | -11 -10 -10 -10 -9 -8 -7 --------- Run | Jun Mat Min Exi Min Mat Fac Machines Accessed 27 | . 8 . 2 . 13 4 Terminals 18 | . 7 . . . 8 3 Fabricators . | . . . . . . . Repair Stations 3 | . 1 . . . 2 . Recycling Units 1 | . . . . . 1 . Scanalyzers 2 | . . . . . 2 . Garrison Access 1 | . . . . . . 1 Total Hacks 98 | . 25 . 24 . 40 9 Successful 51 | . 9 . 24 . 18 . Failed 47 | . 16 . . . 22 9 Catastrophic 18 | . 5 . . . 9 4 Database Lockouts . | . . . . . . . Manual 15 | . 5 . 1 . 9 . Terminals 54 | . 22 . . . 25 7 Fabricators . | . . . . . . . Repair Stations 7 | . 3 . . . 4 . Recycling Units 4 | . . . . . 4 . Scanalyzers 7 | . . . . . 7 . Garrison Access 2 | . . . . . . 2 Terminal Hacks 37 | . 7 . 24 . 6 . Record 23 | . . . 23 . . . Part Schematic 1 | . 1 . . . . . Prototype ID Bank 1 | . 1 . . . . . Emergency Access Points 1 | . 1 . . . . . Alert Level 2 | . . . . . 2 . Unreport Threat 1 | . . . . . 1 . Locate Traps 1 | . 1 . . . . . Reprogram Traps 1 | . 1 . . . . . Dispatch Records 1 | . 1 . . . . . Hauler Manifests 2 | . 1 . . . 1 . Zone Layout 2 | . . . . . 2 . EX-Prototype ID Bank 1 | . . . 1 . . . Fabricator Hacks . | . . . . . . . Repair Station Hacks 6 | . 2 . . . 4 . Scan Component 3 | . 1 . . . 2 . Repair 3 | . 1 . . . 2 . Recycling Unit Hacks . | . . . . . . . Scanalyzer 7 | . . . . . 7 . Insert Component 3 | . . . . . 3 . Analyze 4 | . . . . . 4 . Garrison Access Hacks . | . . . . . . . Unauthorized Hacks 1 | . . . . . 1 . Terminals 1 | . . . . . 1 . Assimilate 1 | . . . . . 1 . Fabricators . | . . . . . . . Repair Stations . | . . . . . . . Recycling Units . | . . . . . . . Scanalyzers . | . . . . . . . Garrison Access . | . . . . . . . Data Cores Recovered . | . . . . . . . Used . | . . . . . . . Hacking Detections 24 | . 8 . . . 12 4 Full Trace Events 8 | . 2 . . . 5 1 Feedback Events 1 | . . . . . . 1 Corruption 1 | . . . . . . 1 Feedback Blocked . | . . . . . . . Robot Schematics Acquired . | . . . . . . . Robots Built . | . . . . . . . Authchips . | . . . . . . . Time . | . . . . . . . Total Robot Build Rating . | . . . . . . . Part Schematics Acquired 3 | . 1 . . . 2 . Parts Built . | . . . . . . . Authchips . | . . . . . . . Time . | . . . . . . . Total Part Build Rating . | . . . . . . . Parts Repaired 3 | . 1 . . . 2 . Time 84 | . 26 . . . 58 . Parts Recycled . | . . . . . . . Recycled Matter . | . . . . . . . Retrieved Matter . | . . . . . . . Retrieved Components . | . . . . . . . Parts Scanalyzed 3 | . . . . . 3 . Part Schematics Acquired 2 | . . . . . 2 . Parts Damaged . | . . . . . . . Bothacking | -11 -10 -10 -10 -9 -8 -7 ------------ Run | Jun Mat Min Exi Min Mat Fac Used RIF Installer . | . . . . . . . Robots Hacked . | . . . . . . . Non-combat . | . . . . . . . Combat . | . . . . . . . Robot Hacks Applied . | . . . . . . . Relay Couplers Released 2 | . . . . . 2 . Machine Destruction 2 | . . . . . 2 . Fabnet Peak Effective % . | . . . . . . . Robots Rewired . | . . . . . . . Allies Hacked . | . . . . . . . Hacks Repelled . | . . . . . . . Allies | -11 -10 -10 -10 -9 -8 -7 -------- Run | Jun Mat Min Exi Min Mat Fac Total Allies 4 | . . 4 . . . . Largest Group 4 | . . 4 4 4 4 . Highest-Rated Group 71 | . . 71 71 71 71 . Highest-Rated Ally 31 | . . 31 31 31 31 . Total Orders . | . . . . . . . Ally Attacks 105 | . . 10 . 3 92 . Total Damage 1309 | . . 127 . 49 1133 . Kills 20 | . . 2 . 3 15 . Allies Corrupted . | . . . . . . . Allies Melted . | . . . . . . . Intel | -11 -10 -10 -10 -9 -8 -7 ------- Run | Jun Mat Min Exi Min Mat Fac Robot Analysis Total . | . . . . . . . Derelict Logs Recovered 2 | . . 2 . . . . Drone Launches . | . . . . . . . Drone Recoveries . | . . . . . . . Exploration | -11 -10 -10 -10 -9 -8 -7 ------------- Run | Jun Mat Min Exi Min Mat Fac Turns Passed 5162 | 48 720 585 483 404 2623 299 Spaces Moved 3578 | 39 571 477 484 403 1451 153 Core 2 | 1 . . . . 1 . Treads 7 | . . . . . 2 5 Legs 4 | . . . . . 4 . Wheels 3565 | 38 571 477 484 403 1444 148 Hover . | . . . . . . . Flight . | . . . . . . . Fastest Speed 50 | 50 90 105 95 95 95 125 Average Speed 113 | 92 93 105 97 95 132 133 Slowest Speed 1700 | 100 105 105 105 95 1700 312 Overloaded Moves . | . . . . . . . Propulsion Burnouts . | . . . . . . . Robots Hopped . | . . . . . . . Cave-ins Triggered . | . . . . . . . Exploration Rate (%) 62 | 4 89 89 71 86 92 4 Regions Visited 6 Branch Regions 3 Pre-discovered Areas 3 | . . 2 1 . . . Known Exits Taken 1 | . . . . . 1 . Unknown Exits Taken 5 | 1 1 1 1 1 . . Scrap Searched 2 | . . 1 . 1 . . Spaces Dug 2 | . . . . . 2 . Terrain Destroyed 230 | . . . . . 230 . Melee 2 | . . . . . 2 . Projectile 7 | . . . . . 7 . AOE 221 | . . . . . 221 . Terrain Rammed . | . . . . . . . Walls Destroyed . | . . . . . . . Machines Disabled . | . . . . . . . Actions | -11 -10 -10 -10 -9 -8 -7 --------- Run | Jun Mat Min Exi Min Mat Fac Total 4254 | 48 676 524 494 430 1863 219 Wait 208 | . 43 18 4 5 121 17 Move 3572 | 38 570 476 483 402 1450 153 Hop . | . . . . . . . Pick Up 66 | 4 7 5 2 7 36 5 Fast Attach 38 | 6 5 . . 2 22 3 Attach 31 | . . 1 . . 17 13 Detach 10 | . . . . . 10 . Swap 31 | . 5 2 1 1 21 1 Drop 62 | . 5 2 4 10 36 5 Fire 218 | . 41 20 . . 145 12 Melee 12 | . . . . . 3 9 Ram 1 | . . . . . 1 . Kick . | . . . . . . . Crush 2 | . . . . . 1 1 Escape Stasis . | . . . . . . . Rewire . | . . . . . . . Trap 3 | . . . . 3 . . Miscellaneous . | . . . . . . . Route ------- -11/Junkyard -10/Materials (discovered 5 exits: [*Mat x3] / [*Min x2]) -10/Mines (discovered 3 exits: [*Mat x2] / *Exi) -10/Exiles -9/Mines (discovered 2 exits: *Mat x2) -8/Materials (discovered 2 exits: *Fac x2) -7/Factory History --------- Turn | Location | Event 21 | -11/Junkyard | Discovered new exit (range 16) 49 | -11/Junkyard | Entered Materials 156 | -10/Materials | Discovered new exit (range 16) 252 | -10/Materials | Discovered new exit (range 4) 309 | -10/Materials | Build established: Mutant 329 | -10/Materials | Discovered new exit (range 9) 457 | -10/Materials | Repaired Assault Rifle 580 | -10/Materials | Discovered new exit (range 12) 628 | -10/Materials | Discovered new exit (range 16) 769 | -10/Materials | Entered Mines 849 | -10/Mines | Learned location of Storage (-7) 895 | -10/Mines | Received a Rocket Launcher from a helpful Derelict 990 | -10/Mines | Discovered new exit (range 6) 1046 | -10/Mines | Discovered new exit (range 6) 1061 | -10/Mines | Assisted by bots powering up and referring to "LRC-V3" 1321 | -10/Mines | Met a Derelict testing a Signal Generator 1329 | -10/Mines | Learned Materials garrison access intel 1333 | -10/Mines | Found Signal Generator 1344 | -10/Mines | Deemed a non-threat by the Exiles lab entrance 1344 | -10/Mines | Discovered new exit (range 5) 1354 | -10/Mines | Entered Exiles 1354 | -10/Exiles | Accompanied by 4 allies 1383 | -10/Exiles | Met 8R-AWN 1398 | -10/Exiles | Met EX-HEX 1444 | -10/Exiles | Met EX-BIN 1458 | -10/Exiles | Aligned with FarCom system 1459 | -10/Exiles | Given EX-Vault access code 1489 | -10/Exiles | Opened EX-Vault 1497 | -10/Exiles | Found Skeleton Box 1501 | -10/Exiles | Found YOLO Cannon 1533 | -10/Exiles | Warned to stay clear of 0b10 Research branches 1561 | -10/Exiles | Met EX-DEC 1566 | -10/Exiles | Learned location of Zion (-7) 1626 | -10/Exiles | Discovered new exit (range 14) 1837 | -10/Exiles | Left Exiles lab with YOLO Cannon 1837 | -10/Exiles | Entered Mines 1837 | -9/Mines | Accompanied by 4 allies 1901 | -9/Mines | A weapon hastily lodged in a ceiling crevice suddenly fell to the ground 1922 | -9/Mines | Found a hidden stash of uninstalled traps 2149 | -9/Mines | YI-UF0 nonchalantly dropped a Grenade Launcher on the ground 2173 | -9/Mines | Discovered new exit (range 6) 2212 | -9/Mines | Discovered new exit (range 9) 2241 | -9/Mines | Entered Materials 2241 | -8/Materials | Accompanied by 4 allies 2241 | -8/Materials | Evolved 4 slots: Propulsion x1, Utility x3 2242 | -8/Materials | Loaded intel: 1 garrison access location 2396 | -8/Materials | Repaired Imp. Targeting Computer? 2644 | -8/Materials | Repaired Wheel? 3123 | -8/Materials | Discovered new exit (range 5) 3872 | -8/Materials | Lost 5 parts (3n1u1w) 3902 | -8/Materials | Core integrity fell below 50% 3971 | -8/Materials | Found Prototype Device 3971 | -8/Materials | Identified Active Sensor Suite 4224 | -8/Materials | Build established: Scavenger-Mutant 4241 | -8/Materials | First assault squad dispatched 4508 | -8/Materials | Discovered new exit (range 15) 4540 | -8/Materials | Sterilization system engaged 4540 | -8/Materials | Non-combat units ordered to evacuate 4640 | -8/Materials | Combat units ordered to evacuate 4840 | -8/Materials | Ambient heat levels rising (+10) 4862 | -8/Materials | Identified exit to Factory 4864 | -8/Materials | Entered Factory 4864 | -7/Factory | Evolved 2 slots: Propulsion x1, Utility x1 4968 | -7/Factory | Build established: Mutant 5077 | -7/Factory | Core integrity fell below 50% 5134 | -7/Factory | Core integrity fell below 20% 5163 | -7/Factory | Destroyed by G-47 Trooper with Particle Gun Last Messages --------------- 05126_ U-05 Engineer lays Concrete. 05129_ Slammed into Y-54 Guardian. 05130_ U-05 Engineer lays Concrete. 05134_ Connecting with Garrison Access... Feedback: System corruption (+1%). 05134_ ALERT: Suspicious activity at Garrison Access F003. Dispatching Investigation squad. 05135_ U-05 Engineer lays Concrete. 05136_ Door malfunctions. 05136_ Cooling System destroyed. 05136_ Destroyed Cooling System. 05137_ System corrupted: Component data lost. 05137_ ALERT: Construction progress impeded, dispatching reinforcements to local area. 05139_ Hrd. Heavy Armor Plating destroyed. 05142_ Y-54 Guardian destroyed. 05150_ Lgt. Treads destroyed. 05153_ Adv. EMP Blaster destroyed. 05156_ Critical hit (Burn: +37). 05162_ G-47 Trooper misfires. Map ----- +----------------------------------------------------+ | ????????# #????????????????? | | ????????# "#????????????????? | | ????????# """" "#????????????????? | | ????????# """" "#????????????????? | | ????????# """" T#????????????????? | | ????##### "#????????????????? | | ??? """" "#????????????????? | | ??? """" "#????????????????? | | ?? """" #????????????????? | | ?? #????????????????? | | ?? #????????????????? | | ?? ######### #????????????????? | | ?? # """"" # #????????????????? | | ???? ?# ""T"" # #????????????????? | | ???????+ # #????????????????? | | ???????# + ##############???? | | ???????# # # ] #???? | | ???????# # # #???? | | ???????# """" # # #???? | | ???????# """" # # * #???? | | ???????# """" # # """ #???? | | ???????# """" # # """ #???? | | ???????# # / g[[ """ #???? | | ???????# # # [!gg! """" #???? | | ???????######### # "g" """" ????? | | ???????????????# # "@" """"?????? | | ???????????????# # ""G"" """"?????? | | ???????????????# # ????? | | ???????????????# #############????? | | ???????????????# #????????????????? | | ???????????????# #????????????????? | | ???????????????# #????????????????? | | ??????????????? ????????????????? | | ?????????????? ?????????????????? | | ?????????????? ?????????????????? | | ?????????????? ? "" ?????????????????? | | ??????????????????? ?????????????????? | | ??????????????????????????????????????? | | ??????????????????????????????????????? | | ??????????????????????????????????????? | | ??????????????????????????????????????? | | ??????????????????????????????????????? | | ??????????????????????????????????????? | | ??????????????????????????????????????? | | ??????????????????????????????????????? | | ??????????????????????????????????????? | | ??????????????????????????????????????? | | ??????????????????????????????????????? | | ??????????????????????????????????????? | | ??????????????????????????????????????? | +----------------------------------------------------+ Best States ------------- Heat Dissipation 56 Energy Generation 18 Energy Capacity 275 Matter Stores 300 Matter Capacity 300 Sight Range 16 Terrain Scan Range 14 Terrain Scan Density 110 Armor Coverage 600 Utility Shielding 66 Evasion (%) 42 Targeting Accuracy 12 Armor Integrity Analysis 30 Recoil Reduction 2 Energy Filtering 30 Item Schematics ----------------- Huge Storage Unit | -10/Materials | Hacked Imp. Flight Unit | -8/Materials | Scanalyzed Hacking Suite | -8/Materials | Scanalyzed Robot Schematics ------------------ None Fabricated ------------ Nothing Alien Tech Used ----------------- None Achievements -------------- None Challenges ------------ None Game ------ Seed SkeletonPlasmaPit Manual? 0 Play Time 01:10:50 Cumulative 126.0 hours Start 2023.03.21 @ 23:10:19 End 2023.03.22 @ 00:27:22 Sessions 1 Manual Loads 0 Difficulty Rogue Special Mode None Game No. 75 Rogue 75 Adventurer 0 Explorer 0 Win Type - Total 1 Types 1/0/0/0/0/0/0/0/0 Lore% 44 Gallery% 55 Achievement% 43 Wizard Run 0 Options --------- ASCII 0 Keyboard 1 Movement Vi Keybinds 0 Fullscreen 1 Font 12/Smallcaps Map View 83x54 Tactical HUD 1 Map Filters NONE Filters NONE Steam 1 RUN: 2c40ee01-9091-4644-bf7b-334c0f23bfbd